fUSD/lending_fUSD_20260217
["ID","MTS","AMOUNT","RATE_DAILY","PERIOD"]
[405782122,1771303840790,-500.0,0.00013698,2]
[405782123,1771303840800,-205.75338066,0.00013698,2]
[405782124,1771303840810,-500.0,0.00013698,2]
[405782125,1771303840820,-500.0,0.00013698,2]
[405782126,1771303840831,-500.0,0.00013698,2]
[405782127,1771303840840,-500.0,0.00013698,2]
[405782128,1771303840850,-500.0,0.00013698,2]
[405782129,1771303840860,-500.0,0.00013698,2]
[405782130,1771303840870,-500.0,0.00013698,2]
[405782131,1771303840880,-500.0,0.00013698,2]
[405782132,1771303840890,-500.0,0.00013698,2]
[405782133,1771303840900,-154.45149982,0.00013698,2]
[405782134,1771303840909,-679.08,0.00013698,2]
[405782135,1771303840919,-679.08,0.00013698,2]
[405782136,1771303840929,-679.08,0.00013698,2]
[405782137,1771303840939,-679.08,0.00013698,2]
[405782138,1771303840949,-679.08,0.00013698,2]
[405782139,1771303840960,-679.08,0.00013698,2]
[405782140,1771303840969,-679.08,0.00013698,2]
[405782141,1771303840979,-679.08,0.00013698,2]
[405782142,1771303840989,-679.08,0.00013698,2]
[405782143,1771303840999,-679.08,0.00013698,2]
[405782144,1771303841009,-679.08,0.00013698,2]
[405782145,1771303841019,-679.08,0.00013698,2]
[405782146,1771303841029,-679.08,0.00013698,2]
[405782147,1771303841038,-679.08,0.00013698,2]
[405782148,1771303841048,-679.08,0.00013698,2]
[405782149,1771303841057,-679.08,0.00013698,2]
[405782150,1771303841067,-679.08,0.00013698,2]
[405782151,1771303841078,-679.08,0.00013698,2]
[405782152,1771303841087,-679.08,0.00013698,2]
[405782153,1771303841098,-500.0,0.00013698,2]
[405782154,1771303841108,-500.0,0.00013698,2]
[405782155,1771303841119,-400.27334963,0.00013698,2]
[405782156,1771303841129,-500.0,0.00013698,2]
[405782157,1771303841139,-500.0,0.00013698,2]
[405782158,1771303841149,-500.0,0.00013698,2]
[405782159,1771303841159,-500.0,0.00013698,2]
[405782160,1771303841169,-500.0,0.00013698,2]
[405782161,1771303841179,-500.0,0.00013698,2]
[405782162,1771303841188,-500.0,0.00013698,2]
[405782163,1771303841198,-500.0,0.00013698,2]
[405782164,1771303841207,-500.0,0.00013698,2]
[405782165,1771303841217,-500.0,0.00013698,2]
[405782166,1771303841227,-500.0,0.00013698,2]
[405782167,1771303841236,-500.0,0.00013698,2]
[405782168,1771303841246,-500.0,0.00013698,2]
[405782169,1771303841255,-500.0,0.00013698,2]
[405782170,1771303841269,-500.0,0.00013698,2]
[405782171,1771303841279,-500.0,0.00013698,2]
[405782172,1771303841289,-500.0,0.00013698,2]
[405782173,1771303841298,-500.0,0.00013698,2]
[405782174,1771303841309,-500.0,0.00013698,2]
[405782175,1771303841319,-500.0,0.00013698,2]
[405782176,1771303841329,-500.0,0.00013698,2]
[405782177,1771303841339,-500.0,0.00013698,2]
[405782178,1771303841349,-500.0,0.00013698,2]
[405782179,1771303841359,-500.0,0.00013698,2]
[405782180,1771303841369,-500.0,0.00013698,2]
[405782181,1771303841378,-500.0,0.00013698,2]
[405782182,1771303841389,-500.0,0.00013698,2]
[405782183,1771303841399,-500.0,0.00013698,2]
[405782184,1771303841409,-500.0,0.00013698,2]
[405782185,1771303841419,-500.0,0.00013698,2]
[405782186,1771303841428,-500.0,0.00013698,2]
[405782187,1771303841438,-500.0,0.00013698,2]
[405782188,1771303841447,-500.0,0.00013698,2]
[405782189,1771303841458,-500.0,0.00013698,2]
[405782190,1771303841467,-500.0,0.00013698,2]
[405782191,1771303841482,-500.0,0.00013698,2]
[405782192,1771303841492,-500.0,0.00013698,2]
[405782193,1771303841501,-500.0,0.00013698,2]
[405782194,1771303841511,-500.0,0.00013698,2]
[405782195,1771303841522,-500.0,0.00013698,2]
[405782196,1771303841532,-197.6651859,0.00013698,2]
[405782197,1771303841542,-500.0,0.00013698,2]
[405782198,1771303841551,-500.0,0.00013698,2]
[405782199,1771303841561,-500.0,0.00013698,2]
[405782200,1771303841571,-500.0,0.00013698,2]
[405782201,1771303841581,-500.0,0.00013698,2]
[405782202,1771303841591,-500.0,0.00013698,2]
[405782203,1771303841601,-500.0,0.00013698,2]
[405782204,1771303841611,-500.0,0.00013698,2]
[405782205,1771303841621,-500.0,0.00013698,2]
[405782206,1771303841632,-500.0,0.00013698,2]
[405782207,1771303841643,-500.0,0.00013698,2]
[405782208,1771303841654,-500.0,0.00013698,2]
[405782209,1771303841966,-500.0,0.00013698,2]
[405782210,1771303841977,-500.0,0.00013698,2]
[405782211,1771303841987,-500.0,0.00013698,2]
[405782212,1771303841997,-500.0,0.00013698,2]
[405782213,1771303842007,-500.0,0.00013698,2]
[405782214,1771303842016,-500.0,0.00013698,2]
[405782215,1771303842026,-500.0,0.00013698,2]
[405782216,1771303842035,-522.2154278,0.00013698,2]
[405782217,1771303842045,-1125.16,0.00013698,2]
[405782218,1771303842055,-1125.16,0.00013698,2]
[405782219,1771303842065,-1125.16,0.00013698,2]
[405782220,1771303842074,-1125.16,0.00013698,2]
[405782221,1771303842083,-1125.16,0.00013698,2]
[405782222,1771303842093,-1125.16,0.00013698,2]
[405782223,1771303842103,-1125.16,0.00013698,2]
[405782224,1771303842112,-1125.16,0.00013698,2]
[405782225,1771303842122,-1125.16,0.00013698,2]
[405782226,1771303842132,-1125.16,0.00013698,2]
[405782227,1771303842142,-1125.16,0.00013698,2]
[405782228,1771303842151,-1125.16,0.00013698,2]
[405782229,1771303842160,-1125.16,0.00013698,2]
[405782230,1771303842170,-1125.16,0.00013698,2]
[405782231,1771303842179,-1125.16,0.00013698,2]
[405782232,1771303842188,-1125.16,0.00013698,2]
[405782233,1771303842197,-1125.16,0.00013698,2]
[405782234,1771303842207,-1125.16,0.00013698,2]
[405782235,1771303842216,-1125.16,0.00013698,2]
[405782236,1771303842226,-456.05800986,0.00013698,2]
[405782237,1771303842235,-500.0,0.00013698,2]
[405782238,1771303842245,-500.0,0.00013698,2]
[405782239,1771303842254,-500.0,0.00013698,2]
[405782240,1771303842267,-500.0,0.00013698,2]
[405782241,1771303842277,-500.0,0.00013698,2]
[405782242,1771303842287,-500.0,0.00013698,2]
[405782243,1771303842296,-500.0,0.00013698,2]
[405782244,1771303842307,-500.0,0.00013698,2]
[405782245,1771303842316,-500.0,0.00013698,2]
[405782246,1771303842326,-500.0,0.00013698,2]
[405782247,1771303842337,-430.55674509,0.00013698,2]
[405782248,1771303842346,-500.0,0.00013698,2]
[405782249,1771303842356,-500.0,0.00013698,2]
[405782250,1771303842365,-500.0,0.00013698,2]
[405782251,1771303842375,-500.0,0.00013698,2]
[405782252,1771303842384,-500.0,0.00013698,2]
[405782253,1771303842393,-500.0,0.00013698,2]
[405782254,1771303842402,-500.0,0.00013698,2]
[405782255,1771303842412,-500.0,0.00013698,2]
[405782256,1771303842421,-500.0,0.00013698,2]
[405782257,1771303842430,-500.0,0.00013698,2]
[405782258,1771303842440,-500.0,0.00013698,2]
[405782259,1771303842450,-500.0,0.00013698,2]
[405782260,1771303842460,-500.0,0.00013698,2]
[405782261,1771303842469,-500.0,0.00013698,2]
[405782262,1771303842478,-500.0,0.00013698,2]
[405782263,1771303842488,-500.0,0.00013698,2]
[405782264,1771303842497,-500.0,0.00013698,2]
[405782265,1771303842507,-500.0,0.00013698,2]
[405782266,1771303842516,-505.24249427,0.00013698,2]
[405782267,1771303842526,-506.79858148,0.00013698,2]
[405782268,1771303842535,-535.55684817,0.00013698,2]
[405782269,1771303842544,-500.0,0.00013698,2]
[405782270,1771303842554,-500.0,0.00013698,2]
[405782271,1771303842563,-500.0,0.00013698,2]
[405782272,1771303842572,-639.90682726,0.00013698,2]
[405782273,1771303842582,-915.21,0.00013698,2]
[405782274,1771303842592,-915.21,0.00013698,2]
[405782275,1771303842601,-915.21,0.00013698,2]
[405782276,1771303842610,-915.21,0.00013698,2]
[405782277,1771303842619,-915.21,0.00013698,2]
[405782278,1771303842629,-915.21,0.00013698,2]
[405782279,1771303842638,-915.21,0.00013698,2]
[405782280,1771303842647,-915.21,0.00013698,2]
[405782281,1771303842657,-915.21,0.00013698,2]
[405782282,1771303842666,-915.21,0.00013698,2]
[405782283,1771303842676,-915.21,0.00013698,2]
[405782284,1771303842685,-915.21,0.00013698,2]
[405782285,1771303842695,-915.21,0.00013698,2]
[405782286,1771303842705,-915.21,0.00013698,2]
[405782287,1771303842715,-915.21,0.00013698,2]
[405782288,1771303842724,-915.21,0.00013698,2]
[405782289,1771303842734,-915.21,0.00013698,2]
[405782290,1771303842743,-915.21,0.00013698,2]
[405782291,1771303842753,-915.21,0.00013698,2]
[405782292,1771303842762,-500.0,0.00013698,2]
[405782293,1771303842771,-500.0,0.00013698,2]
[405782294,1771303842780,-500.0,0.00013698,2]
[405782295,1771303842790,-307.44205355,0.00013698,2]
[405782296,1771303842799,-500.0,0.00013698,2]
[405782297,1771303842808,-500.0,0.00013698,2]
[405782298,1771303842818,-500.0,0.00013698,2]
[405782299,1771303842828,-500.0,0.00013698,2]
[405782301,1771303842837,-500.0,0.00013698,2]
[405782302,1771303842847,-500.0,0.00013698,2]
[405782303,1771303842856,-500.0,0.00013698,2]
[405782304,1771303842865,-500.0,0.00013698,2]
[405782305,1771303842875,-500.0,0.00013698,2]
[405782306,1771303842884,-500.0,0.00013698,2]
[405782307,1771303842893,-500.0,0.00013698,2]
[405782308,1771303842902,-500.0,0.00013698,2]
[405782309,1771303842912,-500.0,0.00013698,2]
[405782310,1771303842922,-500.0,0.00013698,2]
[405782311,1771303842931,-500.0,0.00013698,2]
[405782312,1771303842941,-500.0,0.00013698,2]
[405782313,1771303842950,-500.0,0.00013698,2]
[405782314,1771303842959,-286.9609652,0.00013698,2]
[405782315,1771303842969,-349.69131006,0.00013698,2]
[405782316,1771303842979,-500.0,0.00013698,2]
[405782317,1771303842989,-500.0,0.00013698,2]
[405782318,1771303842998,-500.0,0.00013698,2]
[405782319,1771303843007,-500.0,0.00013698,2]
[405782320,1771303843016,-511.5660924,0.00013698,2]
[405782321,1771303843026,-500.0,0.00013698,2]
[405782322,1771303843035,-529.40507312,0.00013698,2]
[405782323,1771303843045,-500.0,0.00013698,2]
[405782324,1771303843055,-500.0,0.00013698,2]
[405782325,1771303843064,-500.0,0.00013698,2]
[405782326,1771303843073,-500.0,0.00013698,2]
[405782327,1771303843083,-500.0,0.00013698,2]
[405782328,1771303843093,-500.0,0.00013698,2]
[405782329,1771303843102,-500.0,0.00013698,2]
[405782330,1771303843111,-500.0,0.00013698,2]
[405782331,1771303843120,-500.0,0.00013698,2]
[405782332,1771303843129,-500.0,0.00013698,2]
[405782333,1771303843140,-500.0,0.00013698,2]
[405782334,1771303843149,-500.0,0.00013698,2]
[405782335,1771303843159,-500.0,0.00013698,2]
[405782336,1771303843168,-500.0,0.00013698,2]
[405782337,1771303843178,-500.0,0.00013698,2]
[405782338,1771303843187,-500.0,0.00013698,2]
[405782339,1771303843197,-500.0,0.00013698,2]
[405782340,1771303843207,-500.0,0.00013698,2]
[405782341,1771303843216,-500.0,0.00013698,2]
[405782342,1771303843226,-500.0,0.00013698,2]
[405782343,1771303843235,-538.27974596,0.00013698,2]
[405782344,1771303843245,-5148.7,0.00013698,2]
[405782345,1771303843254,-654.39,0.00013699,2]
[405782346,1771303843266,-200.0,0.00013699,2]
[405782347,1771303843277,-183.74,0.00013699,2]
[405782348,1771303843286,-3000.0,0.00013712,2]
[405782349,1771303843295,-5148.7,0.00013876,2]
[405782351,1771303843306,-1794.0,0.00013992,2]
[405782352,1771303843315,-9035.0,0.00013992,2]
[405782354,1771303843325,-5148.7,0.00014054,2]
[405782355,1771303843335,-5148.7,0.00014232,2]
[405782356,1771303843344,-846.3153877,0.0001426,2]
[405782357,1771303843354,-654.39,0.00014384,2]
[405782358,1771303843363,-151.0,0.00014408,2]
[405782359,1771303843372,-250.0,0.00014408,2]
[405782360,1771303843382,-209.40437684,0.00014408,2]
[405782361,1771303843391,-151.0,0.00014408,2]
[405782362,1771303843401,-250.0,0.00014408,2]
[405782363,1771303843410,-721.12765535,0.00014408,2]
[405782364,1771303843420,-250.0,0.00014408,2]
[405782365,1771303843429,-151.0,0.00014408,2]
[405782366,1771303843438,-254.77802588,0.00014408,2]
[405782367,1771303843448,-250.0,0.00014408,2]
[405782368,1771303843458,-151.0,0.00014408,2]
[405782369,1771303843468,-151.0,0.00014408,2]
[405782370,1771303843477,-250.0,0.00014408,2]
[405782371,1771303843487,-151.0,0.00014408,2]
[405782372,1771303843496,-250.0,0.00014408,2]
[405782373,1771303843506,-151.0,0.00014408,2]
[405782374,1771303843515,-261.90795033,0.00014408,2]
[405782375,1771303843525,-250.0,0.00014408,2]
[405782376,1771303843534,-1421.82630279,0.00014408,2]
[405782377,1771303843544,-500.0,0.00014408,2]
[405782378,1771303843553,-250.0,0.00014408,2]
[405782379,1771303843563,-500.0,0.00014408,2]
[405782380,1771303843572,-250.0,0.00014408,2]
[405782381,1771303843581,-586.96513288,0.00014408,2]
[405782382,1771303843591,-160.0,0.00014408,2]
[405782383,1771303843600,-250.0,0.00014408,2]
[405782384,1771303843610,-200.0,0.00014408,2]
[405782385,1771303843620,-250.0,0.00014408,2]
[405782386,1771303843629,-250.0,0.00014408,2]
[405782387,1771303843639,-250.0,0.00014408,2]
[405782388,1771303843648,-250.0,0.00014408,2]
[405782389,1771303843658,-177.7218892,0.00014408,2]
[405782390,1771303843668,-250.0,0.00014408,2]
[405782391,1771303843677,-151.12957794,0.00014408,2]
[405782392,1771303843687,-250.0,0.00014408,2]
[405782393,1771303843696,-250.0,0.00014408,2]
[405782394,1771303843706,-302.70619241,0.00014408,2]
[405782395,1771303843715,-578.20924308,0.00014408,2]
[405782396,1771303843725,-250.0,0.00014408,2]
[405782397,1771303843735,-250.0,0.00014408,2]
[405782398,1771303843744,-253.83621088,0.00014408,2]
[405782399,1771303843753,-3000.0,0.00014408,2]
[405782400,1771303843763,-3000.0,0.00014408,2]
[405782401,1771303843772,-3000.0,0.00014408,2]
[405782402,1771303843781,-151.0,0.00014408,2]
[405782403,1771303843791,-1000.0,0.00014408,2]
[405782404,1771303843800,-3000.0,0.00014408,2]
[405782405,1771303843809,-1000.0,0.00014408,2]
[405782406,1771303843819,-3000.0,0.00014408,2]
[405782407,1771303843829,-526.36214318,0.00014408,2]
[405782408,1771303843839,-3000.0,0.00014408,2]
[405782409,1771303843848,-3000.0,0.00014408,2]
[405782410,1771303843858,-3099.28707761,0.00014408,2]
[405782411,1771303843867,-250.0,0.00014408,2]
[405782412,1771303843877,-250.0,0.00014408,2]
[405782413,1771303843886,-250.0,0.00014408,2]
[405782414,1771303843896,-250.0,0.00014408,2]
[405782415,1771303843905,-3000.0,0.00014408,2]
[405782416,1771303843915,-250.0,0.00014408,2]
[405782417,1771303843924,-250.0,0.00014408,2]
[405782418,1771303843934,-3000.0,0.00014408,2]
[405782419,1771303843944,-250.0,0.00014408,2]
[405782420,1771303843953,-250.0,0.00014408,2]
[405782421,1771303843963,-1070.81608438,0.00014408,2]
[405782422,1771303843972,-250.0,0.00014408,2]
[405782423,1771303843982,-250.0,0.00014408,2]
[405782424,1771303843991,-250.0,0.00014408,2]
[405782425,1771303844000,-250.0,0.00014408,2]
[405782426,1771303844009,-299.40346672,0.00014408,2]
[405782427,1771303844019,-250.0,0.00014408,2]
[405782428,1771303844029,-250.0,0.00014408,2]
[405782429,1771303844038,-250.0,0.00014408,2]
[405782430,1771303844047,-250.0,0.00014408,2]
[405782431,1771303844058,-250.0,0.00014408,2]
[405782432,1771303844067,-250.0,0.00014408,2]
[405782433,1771303844077,-162.380719,0.00014408,2]
[405782434,1771303844086,-250.0,0.00014408,2]
[405782435,1771303844096,-250.0,0.00014408,2]
[405782436,1771303844106,-250.0,0.00014408,2]
[405782437,1771303844116,-250.0,0.00014408,2]
[405782438,1771303844126,-250.0,0.00014408,2]
[405782439,1771303844136,-250.0,0.00014408,2]
[405782440,1771303844145,-250.0,0.00014408,2]
[405782441,1771303844155,-250.0,0.00014408,2]
[405782442,1771303844164,-279.55615727,0.00014408,2]
[405782443,1771303844174,-693.3919763,0.00014408,2]
[405782444,1771303844183,-5148.7,0.0001441,2]
[405782445,1771303844193,-151.0,0.00014463,2]
[405782446,1771303844202,-719.04747942,0.00014463,2]
[405782447,1771303844212,-151.0,0.00014518,2]
[405782448,1771303844221,-745.65223616,0.00014518,2]
[405782449,1771303844231,-151.0,0.00014573,2]
[405782450,1771303844240,-773.2413689,0.00014573,2]
[405782451,1771303844250,-5148.7,0.00014587,2]
[405782452,1771303844259,-151.0,0.00014628,2]
[405782453,1771303844272,-801.85129955,0.00014628,2]
[405782454,1771303844376,-151.0,0.00014634,2]
[405782455,1771303844386,-151.0,0.00014634,2]
[405782456,1771303844395,-151.0,0.00014634,2]
[405782457,1771303844406,-151.0,0.00014683,2]
[405782458,1771303844415,-831.51979763,0.00014683,2]
[405782459,1771303844424,-915.21,0.00014697,2]
[405782460,1771303844433,-915.21,0.00014697,2]
[405782461,1771303844443,-915.21,0.00014697,2]
[405782462,1771303844452,-915.21,0.00014697,2]
[405782463,1771303844462,-915.2263384,0.00014697,2]
[405782464,1771303844472,-151.0,0.00014738,2]
[405782465,1771303844482,-862.28603014,0.00014738,2]
[405782466,1771303844491,-5148.7,0.00014765,2]
[405782467,1771303844500,-151.0,0.00014793,2]
[405782468,1771303844509,-894.19061326,0.00014793,2]
[405782469,1771303844519,-151.0,0.00014848,2]
[405782470,1771303844528,-927.27566595,0.00014848,2]
[405782471,1771303844538,-151.0,0.00014903,2]
[405782472,1771303844547,-961.58486559,0.00014903,2]
[405782473,1771303844556,-5148.7,0.00014943,2]
[405782474,1771303844565,-217.15233878,0.00014956,2]
[405782475,1771303844574,-200.0,0.00014956,2]
[405782476,1771303844584,-151.0,0.00014958,2]
[405782477,1771303844593,-997.16350561,0.00014958,2]
[405782478,1771303844602,-250.0,0.00015,2]
[405782479,1771303844612,-151.0,0.00015013,2]
[405782480,1771303844622,-151.0,0.00015068,2]
[405782481,1771303844632,-654.39,0.00015068,2]
[405782482,1771303844641,-160.0,0.00015068,4]
[405782483,1771303844650,-5148.7,0.00015121,2]
[405782484,1771303844659,-151.0,0.00015123,2]
[405782485,1771303844668,-267.05598539,0.00015178,2]
[405782486,1771303844677,-160.0,0.00015256,4]
[405782487,1771303844687,-4193.06,0.00015276,2]
[405782488,1771303844696,-5148.7,0.00015299,2]
[405782489,1771303844705,-679.08,0.00015347,2]
[405782490,1771303844714,-679.08,0.00015347,2]
[405782491,1771303844723,-679.08,0.00015347,2]
[405782492,1771303844733,-679.08,0.00015347,2]
[405782493,1771303844742,-679.22619195,0.00015347,2]
[405782494,1771303844752,-500.0,0.00015347,2]
[405782495,1771303844761,-500.0,0.00015347,2]
[405782496,1771303844770,-500.0,0.00015347,2]
[405782497,1771303844779,-500.0,0.00015347,2]
[405782498,1771303844788,-388.47570654,0.00015347,2]
[405782499,1771303844797,-508.20125622,0.00015347,2]
[405782500,1771303844806,-1125.16,0.00015347,2]
[405782501,1771303844816,-1125.16,0.00015347,2]
[405782502,1771303844825,-1125.16,0.00015347,2]
[405782503,1771303844834,-1125.16,0.00015347,2]
[405782504,1771303844844,-1125.29508189,0.00015347,2]
[405782505,1771303844852,-11651.0,0.00015391,2]
[405782506,1771303844861,-5148.7,0.00015477,2]
[405782507,1771303844878,-297.18074641,0.00015504,2]
[405782508,1771303844888,-550.98049433,0.00015654,7]
[405782509,1771303844898,-5148.7,0.00015655,2]
[405782510,1771303844908,-8966.012224,0.00015717,7]
[405782511,1771303844918,-2215.465337,0.00015717,7]
[405782512,1771303844928,-654.39,0.00015753,2]
[405782513,1771303844938,-160.32510575,0.00015777,2]
[405782514,1771303844948,-168.3888056,0.00015777,2]
[405782515,1771303844959,-5148.7,0.00015833,2]
[405782516,1771303844969,-5000.0,0.0001596,2]
[405782517,1771303844979,-303.26122484,0.00016,2]
[405782518,1771303844989,-5148.7,0.00016011,2]
[405782519,1771303844999,-315.90732778,0.00016096,2]
[405782520,1771303845009,-173.57638878,0.00016159,2]
[405782521,1771303845019,-160.0,0.00016159,2]
[405782522,1771303845028,-5148.7,0.00016188,2]
[405782523,1771303845038,-241.70774661,0.00016213,2]
[405782524,1771303845047,-5148.7,0.00016366,2]
[405782525,1771303845058,-654.39,0.00016438,2]
[405782526,1771303845067,-5148.7,0.00016544,2]
[405782527,1771303845077,-5148.7,0.00016722,2]
[405782528,1771303845087,-9917.64356668,0.00016776,2]
[405782529,1771303845097,-160.57318335,0.00016809,2]
[405782530,1771303845106,-1000.0,0.00016885,2]
[405782531,1771303845116,-1000.0,0.00016885,2]
[405782532,1771303845125,-1000.0,0.00016885,2]
[405782533,1771303845135,-1000.0,0.00016885,2]
[405782534,1771303845145,-1000.0,0.00016885,2]
[405782535,1771303845155,-5148.7,0.000169,2]
[405782536,1771303845164,-300.0,0.00017,2]
[405782537,1771303845174,-160.0,0.00017,7]
[405782538,1771303845184,-168.19115038,0.00017146,2]
[405782539,1771303845193,-747.8093786,0.00017147,2]
[405782540,1771303845203,-599.60298507,0.00017147,2]
[405782541,1771303845212,-3701.0,0.000172,2]
[405782542,1771303845221,-350.0,0.00017216,2]
[405782543,1771303845231,-350.0,0.00017239,2]
[405782544,1771303845246,-502.0,0.000173,2]
[405782545,1771303845256,-5016.38407619,0.0001764,2]
[405782546,1771303845267,-350.0,0.00017674,2]
[405782547,1771303845278,-306.51422453,0.00017698,2]
[405782548,1771303845288,-350.0,0.00017702,2]
[405782549,1771303845299,-444.64,0.00017808,2]
[405782550,1771303845310,-800.0,0.00017808,2]
[405782551,1771303845320,-250.0,0.00017808,20]
[405782552,1771303845330,-250.0,0.00017808,20]
[405782553,1771303845340,-250.0,0.00017808,20]
[405782554,1771303845350,-250.0,0.00017808,20]
[405782555,1771303845359,-250.0,0.00017808,20]
[405782556,1771303845369,-250.0,0.00017808,20]
[405782557,1771303845379,-250.0,0.00017808,20]
[405782558,1771303845389,-250.0,0.00017808,20]
[405782559,1771303845399,-250.0,0.00017808,20]
[405782560,1771303845408,-250.0,0.00017808,20]
[405782561,1771303845418,-250.0,0.00017808,20]
[405782562,1771303845428,-250.0,0.00017808,20]
[405782563,1771303845438,-250.0,0.00017808,20]
[405782564,1771303845447,-250.0,0.00017808,20]
[405782565,1771303845458,-250.0,0.00017808,20]
[405782566,1771303845468,-211.316222,0.00017808,20]
[405782567,1771303845477,-260.09005,0.0001782,2]
[405782568,1771303845487,-260.09005,0.0001782,2]
[405782569,1771303845497,-350.0,0.00017834,2]
[405782570,1771303845507,-200.0,0.00017855,2]
[405782571,1771303845517,-200.0,0.00017856,2]
[405782572,1771303845528,-200.0,0.00017856,2]
[405782573,1771303845538,-837407.5056,0.000179,2]
[405782575,1771303845548,-32850.4601,0.000179,2]
[405782576,1771303845558,-10000.0,0.000179,2]
[405782577,1771303845567,-1000.0,0.000179,2]
[405782578,1771303845577,-4587.476,0.000179,2]
[405782579,1771303845586,-5008.1800114,0.000179,3]
[405782580,1771303845600,-1488.83065607,0.000179,2]
[405782581,1771303845610,-227.20890354,0.000179,2]
[405782582,1771303845620,-5514.56110274,0.000179,2]
[405782583,1771303845630,-15537.82466557,0.000179,2]
[405782584,1771303845640,-500.0,0.00017918,2]
[405782585,1771303845651,-500.0,0.00017918,2]
[405782586,1771303845661,-500.0,0.00017918,2]
[405782587,1771303845672,-500.0,0.00017918,2]
[405782588,1771303845681,-265.0,0.00017918,2]
[405782589,1771303845691,-763.92788936,0.0001799,2]
[405782590,1771303845701,-151.0,0.00017997,2]
[405782591,1771303845711,-300.0,0.00017999,2]
[405782592,1771303845721,-300.0,0.00017999,2]
[405782593,1771303845731,-300.0,0.00017999,2]
[405782594,1771303845741,-666.0,0.00017999,2]
[405782595,1771303845750,-300.0,0.00017999,2]
[405782596,1771303845761,-300.0,0.00017999,2]
[405782597,1771303845771,-666.0,0.00017999,2]
[405782598,1771303845782,-300.0,0.00017999,2]
[405782599,1771303845791,-23598.10797836,0.00017999,2]
[405782600,1771303845801,-2891276.26185595,0.00018,2]
[405782602,1771303846420,-16180.74627067,0.00018,2]
[405782603,1771303846579,-24882.17481532,0.0001226,2]
[405782604,1771303846590,-1000.0,0.00016885,2]
[405782605,1771303846600,-8455880.00708572,0.00018,2]
[405782606,1771303847393,-40.1816169,0.00018,2]
[405782607,1771303847692,-5530.0,0.000122,3]
[405782608,1771303847704,-5530.0,0.000126,5]
[405782609,1771303847715,-2642.70728176,0.00013368,2]
[405782610,1771303848044,-10008.68995784,0.00013368,2]
[405782611,1771303893054,500.0,7.899e-05,2]
[405782612,1771303893090,500.0,7.899e-05,2]
[405782613,1771303893130,500.0,7.899e-05,2]
[405782614,1771303893541,500.0,7.899e-05,2]
[405782615,1771303893578,500.0,7.899e-05,2]
[405782616,1771303893623,500.0,7.899e-05,2]
[405782617,1771303893659,500.0,7.899e-05,2]
[405782618,1771303893700,500.0,7.899e-05,2]
[405782619,1771303893744,500.0,7.899e-05,2]
[405782620,1771303893783,500.0,7.899e-05,2]
[405782621,1771303893822,0.01,7.899e-05,2]
[405782622,1771303893848,499.99,7.899e-05,2]
[405782623,1771303893887,500.0,7.899e-05,2]
[405782624,1771303893922,500.0,7.899e-05,2]
[405782625,1771303893966,500.0,7.899e-05,2]
[405782626,1771303894015,500.0,7.899e-05,2]